[Event "Titled Tuesday Blitz May 10 Early 2022"]
[White "Valle Maytin, Luis Enrique"]
[Black "Estrada Nieto, Julian"]
[WhiteFideId "3503666"]
[BlackFideId "5101018"]
[WhiteElo "2280"]
[BlackElo "2252"]
[Result "0-1"]
[Round "08"]
[TimeControl "180+1"]
[Date "2022.05.11"]
[WhiteClock "0:00:18"]
[BlackClock "0:00:18"]

1. e4 {[%clk 0:03:00]}  e5 {[%clk 0:02:59]} 2. Nf3 {[%clk 0:03:00]}  Nc6 {[%clk 0:02:59]} 3. Bb5 {[%clk 0:03:00]}  a6 {[%clk 0:02:59]} 4. Ba4 {[%clk 0:02:59]}  Nf6 {[%clk 0:03:00]} 5. O-O {[%clk 0:02:59]}  Be7 {[%clk 0:03:00]} 6. c3 {[%clk 0:02:59]}  b5 {[%clk 0:03:00]} 7. Bb3 {[%clk 0:02:59]}  d6 {[%clk 0:02:59]} 8. Re1 {[%clk 0:02:58]}  O-O {[%clk 0:02:59]} 9. h3 {[%clk 0:02:58]}  Bb7 {[%clk 0:02:59]} 10. d4 {[%clk 0:02:58]}  Re8 {[%clk 0:03:00]} 11. Nbd2 {[%clk 0:02:53]}  Bf8 {[%clk 0:03:00]} 12. Bc2 {[%clk 0:02:52]}  h6 {[%clk 0:03:00]} 13. Nf1 {[%clk 0:02:52]}  exd4 {[%clk 0:02:53]} 14. cxd4 {[%clk 0:02:50]}  Nb4 {[%clk 0:02:53]} 15. Ng3 {[%clk 0:02:31]}  Nxc2 {[%clk 0:02:52]} 16. Qxc2 {[%clk 0:02:32]}  Qd7 {[%clk 0:02:45]} 17. Bf4 {[%clk 0:02:29]}  Nxe4 {[%clk 0:02:31]} 18. Nxe4 {[%clk 0:02:26]}  Qf5 {[%clk 0:02:31]} 19. Nf6+ {[%clk 0:02:15]}  Qxf6 {[%clk 0:02:30]} 20. Qd2 {[%clk 0:02:14]}  Bxf3 {[%clk 0:02:27]} 21. gxf3 {[%clk 0:02:15]}  g5 {[%clk 0:02:11]} 22. Bg3 {[%clk 0:02:09]}  Qxf3 {[%clk 0:02:08]} 23. d5 {[%clk 0:02:07]}  Bg7 {[%clk 0:02:04]} 24. Rxe8+ {[%clk 0:02:03]}  Rxe8 {[%clk 0:02:03]} 25. Rc1 {[%clk 0:02:04]}  Re2 {[%clk 0:01:46]} 26. Qd1 {[%clk 0:02:04]}  Be5 {[%clk 0:01:40]} 27. Rc2 {[%clk 0:01:04]}  Rxf2 {[%clk 0:01:38]} 28. Qxf3 {[%clk 0:01:00]}  Rxf3 {[%clk 0:01:38]} 29. Bxe5 {[%clk 0:01:00]}  dxe5 {[%clk 0:01:38]} 30. Rxc7 {[%clk 0:01:01]}  Rxh3 {[%clk 0:01:31]} 31. Rc6 {[%clk 0:00:58]}  Kg7 {[%clk 0:01:20]} 32. Rxa6 {[%clk 0:00:57]}  Rd3 {[%clk 0:01:20]} 33. d6 {[%clk 0:00:57]}  Kf6 {[%clk 0:01:13]} 34. Rb6 {[%clk 0:00:54]}  Ke6 {[%clk 0:01:02]} 35. Rxb5 {[%clk 0:00:52]}  Rxd6 {[%clk 0:00:59]} 36. a4 {[%clk 0:00:52]}  e4 {[%clk 0:00:49]} 37. Kf2 {[%clk 0:00:51]}  f5 {[%clk 0:00:42]} 38. a5 {[%clk 0:00:50]}  Rd2+ {[%clk 0:00:36]} 39. Ke3 {[%clk 0:00:50]}  Rd3+ {[%clk 0:00:36]} 40. Ke2 {[%clk 0:00:50]}  f4 {[%clk 0:00:30]} 41. a6 {[%clk 0:00:49]}  f3+ {[%clk 0:00:30]} 42. Kf2 {[%clk 0:00:49]}  Rd2+ {[%clk 0:00:22]} 43. Kf1 {[%clk 0:00:44]}  e3 {[%clk 0:00:20]} 44. Rb6+ {[%clk 0:00:32]}  Ke5 {[%clk 0:00:19]} 45. Rb5+ {[%clk 0:00:32]}  Kf4 {[%clk 0:00:19]} 46. Rb4+ {[%clk 0:00:19]}  Kg3 {[%clk 0:00:18]} 47. a7 {[%clk 0:00:18]}  Rd1# {[%clk 0:00:18]} 0-1


[Site "https://www.chess.com"]

[Event "Titled Tuesday Blitz May 10 Early 2022"]
[White "Vifleemskaia, Svetlana"]
[Black "Bas Mas, Jose Joaquin"]
[WhiteFideId "4129490"]
[BlackFideId "22219064"]
[WhiteElo "1929"]
[BlackElo "2233"]
[Result "1-0"]
[Round "08"]
[TimeControl "180+1"]
[Date "2022.05.11"]
[WhiteClock "0:00:19"]
[BlackClock "0:00:14"]

1. d4 {[%clk 0:02:36]}  d5 {[%clk 0:02:58]} 2. c4 {[%clk 0:02:35]}  Nf6 {[%clk 0:02:58]} 3. Nc3 {[%clk 0:02:35]}  e6 {[%clk 0:02:57]} 4. cxd5 {[%clk 0:02:23]}  exd5 {[%clk 0:02:57]} 5. Bg5 {[%clk 0:02:22]}  Be7 {[%clk 0:02:57]} 6. Qc2 {[%clk 0:02:21]}  c6 {[%clk 0:02:57]} 7. e3 {[%clk 0:02:21]}  h6 {[%clk 0:02:56]} 8. Bh4 {[%clk 0:02:20]}  Nbd7 {[%clk 0:02:56]} 9. Bd3 {[%clk 0:02:20]}  O-O {[%clk 0:02:55]} 10. Nge2 {[%clk 0:02:20]}  Re8 {[%clk 0:02:53]} 11. O-O {[%clk 0:02:19]}  Ne4 {[%clk 0:02:42]} 12. Bxe7 {[%clk 0:02:17]}  Qxe7 {[%clk 0:02:41]} 13. Rae1 {[%clk 0:02:17]}  Ndf6 {[%clk 0:02:36]} 14. f3 {[%clk 0:02:16]}  Nxc3 {[%clk 0:02:36]} 15. Nxc3 {[%clk 0:02:16]}  c5 {[%clk 0:02:34]} 16. Qd2 {[%clk 0:02:08]}  Be6 {[%clk 0:02:30]} 17. dxc5 {[%clk 0:02:04]}  Qxc5 {[%clk 0:02:29]} 18. Ne2 {[%clk 0:02:04]}  Bd7 {[%clk 0:02:14]} 19. Nd4 {[%clk 0:02:02]}  Qb6 {[%clk 0:02:12]} 20. Qf2 {[%clk 0:01:58]}  Rac8 {[%clk 0:02:10]} 21. Rc1 {[%clk 0:01:55]}  a6 {[%clk 0:02:05]} 22. a3 {[%clk 0:01:54]}  Rc7 {[%clk 0:01:47]} 23. b4 {[%clk 0:01:45]}  Rec8 {[%clk 0:01:45]} 24. Qd2 {[%clk 0:01:45]}  Ne8 {[%clk 0:01:36]} 25. Nb3 {[%clk 0:01:39]}  Nd6 {[%clk 0:01:30]} 26. Rxc7 {[%clk 0:01:37]}  Rxc7 {[%clk 0:01:29]} 27. Nc5 {[%clk 0:01:28]}  Qa7 {[%clk 0:01:23]} 28. Bb1 {[%clk 0:01:18]}  Nc4 {[%clk 0:01:11]} 29. Qxd5 {[%clk 0:00:56]}  Nxe3 {[%clk 0:01:10]} 30. Qe5 {[%clk 0:00:45]}  Nxf1 {[%clk 0:00:43]} 31. Qxc7 {[%clk 0:00:42]}  g6 {[%clk 0:00:27]} 32. Qxd7 {[%clk 0:00:36]}  Nd2 {[%clk 0:00:25]} 33. Qxd2 {[%clk 0:00:35]}  b6 {[%clk 0:00:24]} 34. Qd8+ {[%clk 0:00:32]}  Kg7 {[%clk 0:00:24]} 35. Nd7 {[%clk 0:00:29]}  b5+ {[%clk 0:00:20]} 36. Kf1 {[%clk 0:00:22]}  Qe3 {[%clk 0:00:17]} 37. Qf8+ {[%clk 0:00:20]}  Kh7 {[%clk 0:00:14]} 38. Nf6# {[%clk 0:00:19]} 1-0


[Site "https://www.chess.com"]

[Event "Titled Tuesday Blitz May 10 Early 2022"]
[White "Wagner, Dennis"]
[Black "Keymer, Vincent"]
[WhiteFideId "24650684"]
[BlackFideId "12940690"]
[WhiteElo "2355"]
[BlackElo "2548"]
[Result "0-1"]
[Round "08"]
[TimeControl "180+1"]
[Date "2022.05.10"]
[WhiteClock "0:00:05"]
[BlackClock "0:00:32"]

1. c4 {[%clk 0:03:00]}  Nf6 {[%clk 0:02:59]} 2. Nc3 {[%clk 0:02:59]}  e5 {[%clk 0:02:59]} 3. Nf3 {[%clk 0:02:58]}  Nc6 {[%clk 0:03:00]} 4. d3 {[%clk 0:02:51]}  Bb4 {[%clk 0:02:59]} 5. Bd2 {[%clk 0:02:51]}  O-O {[%clk 0:02:59]} 6. a3 {[%clk 0:02:50]}  Bxc3 {[%clk 0:02:56]} 7. Bxc3 {[%clk 0:02:51]}  e4 {[%clk 0:02:43]} 8. Nd4 {[%clk 0:02:32]}  Ne5 {[%clk 0:02:15]} 9. Nf5 {[%clk 0:01:41]}  Re8 {[%clk 0:01:58]} 10. Qd2 {[%clk 0:00:50]}  d5 {[%clk 0:01:39]} 11. Nxg7 {[%clk 0:00:39]}  d4 {[%clk 0:01:36]} 12. Nxe8 {[%clk 0:00:36]}  Nxe8 {[%clk 0:01:26]} 13. dxe4 {[%clk 0:00:35]}  c5 {[%clk 0:01:21]} 14. e3 {[%clk 0:00:35]}  Nc6 {[%clk 0:01:15]} 15. exd4 {[%clk 0:00:35]}  cxd4 {[%clk 0:01:15]} 16. O-O-O {[%clk 0:00:34]}  Bg4 {[%clk 0:01:08]} 17. f3 {[%clk 0:00:29]}  dxc3 {[%clk 0:01:08]} 18. Qxd8 {[%clk 0:00:29]}  cxb2+ {[%clk 0:01:08]} 19. Kxb2 {[%clk 0:00:29]}  Nxd8 {[%clk 0:01:09]} 20. fxg4 {[%clk 0:00:30]}  Ne6 {[%clk 0:01:10]} 21. Be2 {[%clk 0:00:25]}  Nc5 {[%clk 0:01:07]} 22. Rhf1 {[%clk 0:00:23]}  Rc8 {[%clk 0:01:03]} 23. e5 {[%clk 0:00:22]}  b6 {[%clk 0:01:01]} 24. g5 {[%clk 0:00:21]}  Ng7 {[%clk 0:00:58]} 25. h4 {[%clk 0:00:21]}  Nge6 {[%clk 0:00:52]} 26. Bh5 {[%clk 0:00:19]}  Rc7 {[%clk 0:00:52]} 27. Rd6 {[%clk 0:00:16]}  Kg7 {[%clk 0:00:52]} 28. Bg4 {[%clk 0:00:10]}  Nf8 {[%clk 0:00:47]} 29. Rdf6 {[%clk 0:00:09]}  Nd3+ {[%clk 0:00:45]} 30. Kb3 {[%clk 0:00:07]}  Nxe5 {[%clk 0:00:46]} 31. Bh5 {[%clk 0:00:07]}  Ne6 {[%clk 0:00:34]} 32. R6f5 {[%clk 0:00:07]}  Nd4+ {[%clk 0:00:34]} 33. Kb4 {[%clk 0:00:05]}  Rxc4# {[%clk 0:00:32]} 0-1


[Site "https://www.chess.com"]

[Event "Titled Tuesday Blitz May 10 Early 2022"]
[White "Winkels, Marcel"]
[Black "Harish, Neeraj"]
[WhiteFideId "1003887"]
[BlackFideId "30958130"]
[WhiteElo "1900"]
[BlackElo "1574"]
[Result "1-0"]
[Round "08"]
[TimeControl "180+1"]
[Date "2022.05.11"]
[WhiteClock "0:01:34"]
[BlackClock "0:00:06"]

1. d4 {[%clk 0:03:00]}  Nf6 {[%clk 0:02:52]} 2. Nc3 {[%clk 0:03:01]}  d5 {[%clk 0:02:51]} 3. Bf4 {[%clk 0:03:01]}  c5 {[%clk 0:02:48]} 4. e3 {[%clk 0:03:00]}  Nc6 {[%clk 0:02:48]} 5. Nf3 {[%clk 0:02:59]}  cxd4 {[%clk 0:02:47]} 6. exd4 {[%clk 0:02:58]}  Bf5 {[%clk 0:02:46]} 7. Bd3 {[%clk 0:02:57]}  Bxd3 {[%clk 0:02:45]} 8. Qxd3 {[%clk 0:02:57]}  e6 {[%clk 0:02:45]} 9. O-O-O {[%clk 0:02:55]}  Qa5 {[%clk 0:02:42]} 10. Kb1 {[%clk 0:02:46]}  Rc8 {[%clk 0:02:38]} 11. Qb5 {[%clk 0:02:43]}  Qxb5 {[%clk 0:02:35]} 12. Nxb5 {[%clk 0:02:42]}  a6 {[%clk 0:02:35]} 13. Nd6+ {[%clk 0:02:39]}  Bxd6 {[%clk 0:02:33]} 14. Bxd6 {[%clk 0:02:39]}  Kd7 {[%clk 0:02:32]} 15. Ba3 {[%clk 0:02:37]}  b5 {[%clk 0:02:30]} 16. Ng5 {[%clk 0:02:33]}  Ke8 {[%clk 0:02:26]} 17. c3 {[%clk 0:02:32]}  a5 {[%clk 0:02:24]} 18. Bc5 {[%clk 0:02:31]}  h6 {[%clk 0:02:16]} 19. Nf3 {[%clk 0:02:28]}  Ne4 {[%clk 0:01:37]} 20. Rhf1 {[%clk 0:02:26]}  Nxc5 {[%clk 0:01:37]} 21. dxc5 {[%clk 0:02:25]}  b4 {[%clk 0:01:34]} 22. cxb4 {[%clk 0:02:19]}  Nxb4 {[%clk 0:01:35]} 23. Rc1 {[%clk 0:02:17]}  Na6 {[%clk 0:01:31]} 24. c6 {[%clk 0:02:15]}  Ke7 {[%clk 0:01:31]} 25. Nd4 {[%clk 0:02:05]}  e5 {[%clk 0:01:23]} 26. Rfe1 {[%clk 0:02:04]}  Kf6 {[%clk 0:01:16]} 27. Nb5 {[%clk 0:02:02]}  Nb4 {[%clk 0:00:29]} 28. Rc3 {[%clk 0:01:46]}  Rxc6 {[%clk 0:00:28]} 29. Rxc6+ {[%clk 0:01:37]}  Nxc6 {[%clk 0:00:29]} 30. Rc1 {[%clk 0:01:37]}  Nb4 {[%clk 0:00:14]} 31. a3 {[%clk 0:01:35]}  Nd3 {[%clk 0:00:12]} 32. Rc6+ {[%clk 0:01:34]}  Kg5 {[%clk 0:00:08]} 33. f3 {[%clk 0:01:34]}  e4 {[%clk 0:00:06]} 34. Nd6 {[%clk 0:01:34]} 1-0


[Site "https://www.chess.com"]

[Event "Titled Tuesday Blitz May 10 Early 2022"]
[White "Yuan, Qingyu"]
[Black "Andreikin, Dmitry"]
[WhiteFideId "8609772"]
[BlackFideId "4158814"]
[WhiteElo "2359"]
[BlackElo "2736"]
[Result "1-0"]
[Round "08"]
[TimeControl "180+1"]
[Date "2022.05.10"]
[WhiteClock "0:00:16"]
[BlackClock "0:00:38"]

1. e4 {[%clk 0:03:00]}  c5 {[%clk 0:02:59]} 2. Nf3 {[%clk 0:03:00]}  e6 {[%clk 0:03:00]} 3. b3 {[%clk 0:03:00]}  b6 {[%clk 0:02:59]} 4. d4 {[%clk 0:03:00]}  cxd4 {[%clk 0:02:59]} 5. Nxd4 {[%clk 0:03:01]}  Bb7 {[%clk 0:02:59]} 6. Nd2 {[%clk 0:03:02]}  d6 {[%clk 0:02:56]} 7. Bb2 {[%clk 0:02:59]}  Nf6 {[%clk 0:02:57]} 8. Bd3 {[%clk 0:02:56]}  Nbd7 {[%clk 0:02:57]} 9. Qe2 {[%clk 0:02:53]}  a6 {[%clk 0:02:51]} 10. O-O-O {[%clk 0:02:50]}  Nc5 {[%clk 0:02:43]} 11. Kb1 {[%clk 0:02:46]}  Be7 {[%clk 0:02:40]} 12. f4 {[%clk 0:02:33]}  Nxd3 {[%clk 0:02:36]} 13. cxd3 {[%clk 0:02:31]}  O-O {[%clk 0:02:34]} 14. g4 {[%clk 0:02:30]}  a5 {[%clk 0:02:34]} 15. g5 {[%clk 0:02:28]}  Nd7 {[%clk 0:02:34]} 16. Rhg1 {[%clk 0:02:12]}  a4 {[%clk 0:02:34]} 17. h4 {[%clk 0:01:59]}  b5 {[%clk 0:02:29]} 18. h5 {[%clk 0:01:49]}  Qa5 {[%clk 0:02:26]} 19. b4 {[%clk 0:01:39]}  Qxb4 {[%clk 0:02:25]} 20. a3 {[%clk 0:01:40]}  Qa5 {[%clk 0:02:23]} 21. g6 {[%clk 0:01:40]}  Bf6 {[%clk 0:02:14]} 22. Qg4 {[%clk 0:01:27]}  Nc5 {[%clk 0:01:57]} 23. gxh7+ {[%clk 0:01:01]}  Kh8 {[%clk 0:01:54]} 24. h6 {[%clk 0:00:56]}  g6 {[%clk 0:01:41]} 25. Nc6 {[%clk 0:00:40]}  Bxc6 {[%clk 0:01:29]} 26. Bxf6+ {[%clk 0:00:41]}  Kxh7 {[%clk 0:01:29]} 27. f5 {[%clk 0:00:41]}  exf5 {[%clk 0:01:24]} 28. exf5 {[%clk 0:00:40]}  Rg8 {[%clk 0:01:24]} 29. Bg7 {[%clk 0:00:21]}  g5 {[%clk 0:00:57]} 30. Qxg5 {[%clk 0:00:17]}  Be8 {[%clk 0:00:49]} 31. Qf6 {[%clk 0:00:17]}  Nd7 {[%clk 0:00:47]} 32. Nf3 {[%clk 0:00:16]}  Nxf6 {[%clk 0:00:38]} 33. Ng5# {[%clk 0:00:16]} 1-0


[Site "https://www.chess.com"]

[Event "Titled Tuesday Blitz May 10 Early 2022"]
[White "Zherebtsova, Alexandra"]
[Black "Tanenbaum, Zachary"]
[WhiteFideId "24129518"]
[BlackFideId "2060850"]
[WhiteElo "2025"]
[BlackElo "2168"]
[Result "0-1"]
[Round "08"]
[TimeControl "180+1"]
[Date "2022.05.11"]
[WhiteClock "0:00:07"]
[BlackClock "0:00:15"]

1. d4 {[%clk 0:02:55]}  d5 {[%clk 0:02:59]} 2. Nf3 {[%clk 0:02:55]}  Bf5 {[%clk 0:02:59]} 3. c4 {[%clk 0:02:55]}  e6 {[%clk 0:02:59]} 4. Nc3 {[%clk 0:02:51]}  c6 {[%clk 0:02:59]} 5. Nd2 {[%clk 0:02:44]}  Nf6 {[%clk 0:02:57]} 6. f3 {[%clk 0:02:44]}  Bg6 {[%clk 0:02:54]} 7. a3 {[%clk 0:02:36]}  c5 {[%clk 0:02:29]} 8. dxc5 {[%clk 0:02:24]}  Bxc5 {[%clk 0:02:14]} 9. cxd5 {[%clk 0:02:19]}  exd5 {[%clk 0:02:01]} 10. Qa4+ {[%clk 0:02:06]}  Nc6 {[%clk 0:02:00]} 11. Nb3 {[%clk 0:01:42]}  Bb6 {[%clk 0:01:56]} 12. Bg5 {[%clk 0:01:38]}  O-O {[%clk 0:01:53]} 13. O-O-O {[%clk 0:01:37]}  h6 {[%clk 0:01:50]} 14. Bf4 {[%clk 0:00:44]}  Qe8 {[%clk 0:01:14]} 15. e4 {[%clk 0:00:28]}  dxe4 {[%clk 0:01:06]} 16. Bb5 {[%clk 0:00:19]}  Nh5 {[%clk 0:01:01]} 17. Bd6 {[%clk 0:00:18]}  Be3+ {[%clk 0:01:01]} 18. Nd2 {[%clk 0:00:14]}  exf3 {[%clk 0:00:54]} 19. gxf3 {[%clk 0:00:14]}  Rc8 {[%clk 0:00:40]} 20. Bxf8 {[%clk 0:00:13]}  Nd4 {[%clk 0:00:40]} 21. Rhe1 {[%clk 0:00:12]}  Nxb5 {[%clk 0:00:28]} 22. Bb4 {[%clk 0:00:10]}  Bxd2+ {[%clk 0:00:18]} 23. Kxd2 {[%clk 0:00:09]}  Qd7+ {[%clk 0:00:17]} 24. Kc1 {[%clk 0:00:09]}  Nd4 {[%clk 0:00:16]} 25. Ba5 {[%clk 0:00:07]}  Qxa4 {[%clk 0:00:15]} 0-1


[Site "https://www.chess.com"]

[Event "Titled Tuesday Blitz May 10 Early 2022"]
[White "parintele_chess"]
[Black "Buscar, Michael"]
[BlackFideId "2603616"]
[WhiteElo "2230"]
[BlackElo "2010"]
[Result "0-1"]
[Round "08"]
[TimeControl "180+1"]
[Date "2022.05.11"]
[WhiteClock "0:01:41"]
[BlackClock "0:01:31"]

1. d4 {[%clk 0:02:59]}  Nf6 {[%clk 0:02:58]} 2. Bf4 {[%clk 0:02:59]}  g6 {[%clk 0:02:58]} 3. Nc3 {[%clk 0:02:59]}  Bg7 {[%clk 0:02:58]} 4. e4 {[%clk 0:02:59]}  d6 {[%clk 0:02:55]} 5. Nf3 {[%clk 0:03:00]}  O-O {[%clk 0:02:53]} 6. Bd3 {[%clk 0:03:00]}  Nbd7 {[%clk 0:02:46]} 7. O-O {[%clk 0:02:59]}  c5 {[%clk 0:02:46]} 8. Be3 {[%clk 0:02:55]}  cxd4 {[%clk 0:02:46]} 9. Bxd4 {[%clk 0:02:55]}  b6 {[%clk 0:02:20]} 10. e5 {[%clk 0:02:42]}  dxe5 {[%clk 0:02:18]} 11. Nxe5 {[%clk 0:02:43]}  Bb7 {[%clk 0:02:10]} 12. Re1 {[%clk 0:02:20]}  Nc5 {[%clk 0:02:02]} 13. Bxc5 {[%clk 0:02:13]}  bxc5 {[%clk 0:02:03]} 14. Bc4 {[%clk 0:02:09]}  Qd4 {[%clk 0:01:52]} 15. Nb5 {[%clk 0:01:54]}  Qh4 {[%clk 0:01:38]} 16. Nxf7 {[%clk 0:01:41]}  Qxc4 {[%clk 0:01:31]} 0-1


[Site "https://www.chess.com"]

[Event "Titled Tuesday Blitz May 10 Early 2022"]
[White "talman67"]
[Black "Xu, Yi"]
[BlackFideId "8605564"]
[WhiteElo "2364"]
[BlackElo "2471"]
[Result "0-1"]
[Round "08"]
[TimeControl "180+1"]
[Date "2022.05.11"]
[WhiteClock "0:00:04"]
[BlackClock "0:01:02"]

1. e4 {[%clk 0:03:00]}  c6 {[%clk 0:02:59]} 2. d4 {[%clk 0:03:00]}  d5 {[%clk 0:02:59]} 3. e5 {[%clk 0:03:01]}  c5 {[%clk 0:02:59]} 4. dxc5 {[%clk 0:02:57]}  e6 {[%clk 0:02:57]} 5. Nf3 {[%clk 0:02:56]}  Bxc5 {[%clk 0:02:57]} 6. Bd3 {[%clk 0:02:56]}  Ne7 {[%clk 0:02:54]} 7. a3 {[%clk 0:02:55]}  Ng6 {[%clk 0:02:51]} 8. b4 {[%clk 0:02:54]}  Be7 {[%clk 0:02:51]} 9. Bb2 {[%clk 0:02:54]}  Nd7 {[%clk 0:02:48]} 10. O-O {[%clk 0:02:52]}  Nf4 {[%clk 0:02:46]} 11. Re1 {[%clk 0:02:52]}  Nxd3 {[%clk 0:02:43]} 12. cxd3 {[%clk 0:02:52]}  a5 {[%clk 0:02:43]} 13. b5 {[%clk 0:02:52]}  a4 {[%clk 0:02:42]} 14. Nc3 {[%clk 0:02:50]}  Nc5 {[%clk 0:02:42]} 15. Nd4 {[%clk 0:02:47]}  O-O {[%clk 0:02:29]} 16. Re3 {[%clk 0:02:46]}  f6 {[%clk 0:02:28]} 17. f4 {[%clk 0:02:25]}  fxe5 {[%clk 0:02:26]} 18. fxe5 {[%clk 0:02:26]}  Qb6 {[%clk 0:02:21]} 19. Rh3 {[%clk 0:01:13]}  Nb3 {[%clk 0:02:06]} 20. Ne2 {[%clk 0:01:13]}  Bc5 {[%clk 0:01:58]} 21. Rh4 {[%clk 0:01:13]}  Nxa1 {[%clk 0:01:52]} 22. Qxa1 {[%clk 0:01:11]}  Qxb5 {[%clk 0:01:50]} 23. h3 {[%clk 0:01:01]}  Qxd3 {[%clk 0:01:43]} 24. Kh2 {[%clk 0:00:57]}  Bd7 {[%clk 0:01:37]} 25. Qe1 {[%clk 0:00:45]}  Bxa3 {[%clk 0:01:26]} 26. Bxa3 {[%clk 0:00:35]}  Qxa3 {[%clk 0:01:26]} 27. Qb1 {[%clk 0:00:36]}  g6 {[%clk 0:01:16]} 28. Qxb7 {[%clk 0:00:35]}  Qe7 {[%clk 0:01:15]} 29. Rg4 {[%clk 0:00:33]}  a3 {[%clk 0:01:13]} 30. Nc6 {[%clk 0:00:15]}  Qg7 {[%clk 0:01:11]} 31. Nb4 {[%clk 0:00:05]}  a2 {[%clk 0:01:09]} 32. Nxa2 {[%clk 0:00:04]}  Rxa2 {[%clk 0:01:09]} 33. Nf4 {[%clk 0:00:05]}  Qxe5 {[%clk 0:01:05]} 34. Qxd7 {[%clk 0:00:04]}  Rxf4 {[%clk 0:01:02]} 0-1


[Site "https://www.chess.com"]

[Event "Titled Tuesday Blitz May 10 Early 2022"]
[White "Al-Tarboush, Ward"]
[Black "Ismayil, Malak"]
[WhiteFideId "7601450"]
[BlackFideId "13412604"]
[WhiteElo "2294"]
[BlackElo "1879"]
[Result "1-0"]
[Round "09"]
[TimeControl "180+1"]
[Date "2022.05.11"]
[WhiteClock "0:02:08"]
[BlackClock "0:00:06"]

1. e4 {[%clk 0:03:00]}  e5 {[%clk 0:02:51]} 2. Nf3 {[%clk 0:03:00]}  Nc6 {[%clk 0:02:50]} 3. Bb5 {[%clk 0:03:00]}  a6 {[%clk 0:02:47]} 4. Ba4 {[%clk 0:03:00]}  Nf6 {[%clk 0:02:37]} 5. O-O {[%clk 0:03:00]}  b5 {[%clk 0:02:30]} 6. Bb3 {[%clk 0:02:59]}  Bc5 {[%clk 0:02:19]} 7. a4 {[%clk 0:02:55]}  Rb8 {[%clk 0:02:18]} 8. axb5 {[%clk 0:02:51]}  axb5 {[%clk 0:02:19]} 9. c3 {[%clk 0:02:49]}  O-O {[%clk 0:02:11]} 10. d4 {[%clk 0:02:49]}  exd4 {[%clk 0:01:14]} 11. cxd4 {[%clk 0:02:50]}  Be7 {[%clk 0:01:14]} 12. e5 {[%clk 0:02:42]}  Ne8 {[%clk 0:01:13]} 13. d5 {[%clk 0:02:42]}  Nb4 {[%clk 0:01:11]} 14. Nc3 {[%clk 0:02:41]}  d6 {[%clk 0:01:06]} 15. e6 {[%clk 0:02:41]}  fxe6 {[%clk 0:01:01]} 16. dxe6 {[%clk 0:02:42]}  Kh8 {[%clk 0:00:53]} 17. Be3 {[%clk 0:02:31]}  Nf6 {[%clk 0:00:44]} 18. Ng5 {[%clk 0:02:30]}  c5 {[%clk 0:00:35]} 19. Nf7+ {[%clk 0:02:28]}  Rxf7 {[%clk 0:00:34]} 20. exf7 {[%clk 0:02:29]}  c4 {[%clk 0:00:34]} 21. Bc2 {[%clk 0:02:30]}  Be6 {[%clk 0:00:33]} 22. Ra7 {[%clk 0:02:26]}  Bxf7 {[%clk 0:00:30]} 23. Bb1 {[%clk 0:02:26]}  Nc6 {[%clk 0:00:27]} 24. Ra6 {[%clk 0:02:23]}  Qc8 {[%clk 0:00:22]} 25. Rb6 {[%clk 0:02:17]}  Rxb6 {[%clk 0:00:21]} 26. Bxb6 {[%clk 0:02:18]}  Ne5 {[%clk 0:00:19]} 27. Bd4 {[%clk 0:02:17]}  b4 {[%clk 0:00:17]} 28. Ne4 {[%clk 0:02:16]}  Nxe4 {[%clk 0:00:15]} 29. Bxe4 {[%clk 0:02:17]}  h6 {[%clk 0:00:10]} 30. Qd2 {[%clk 0:02:10]}  d5 {[%clk 0:00:06]} 31. Bxe5 {[%clk 0:02:08]} 1-0


[Site "https://www.chess.com"]

[Event "Titled Tuesday Blitz May 10 Early 2022"]
[White "Bach, Ngoc Thuy Duong"]
[Black "Johnson, Ben"]
[WhiteFideId "12408956"]
[BlackFideId "2010917"]
[WhiteElo "1862"]
[BlackElo "2234"]
[Result "1-0"]
[Round "09"]
[TimeControl "180+1"]
[Date "2022.05.11"]
[WhiteClock "0:00:16"]
[BlackClock "0:00:03"]

1. d4 {[%clk 0:03:00]}  Nf6 {[%clk 0:02:59]} 2. c4 {[%clk 0:03:00]}  e6 {[%clk 0:03:00]} 3. Nc3 {[%clk 0:03:00]}  Bb4 {[%clk 0:03:00]} 4. Qc2 {[%clk 0:03:00]}  O-O {[%clk 0:03:00]} 5. a3 {[%clk 0:03:00]}  Bxc3+ {[%clk 0:03:00]} 6. Qxc3 {[%clk 0:03:00]}  d5 {[%clk 0:03:00]} 7. Bg5 {[%clk 0:03:00]}  dxc4 {[%clk 0:02:58]} 8. Qxc4 {[%clk 0:03:01]}  b6 {[%clk 0:02:57]} 9. Rd1 {[%clk 0:03:01]}  Ba6 {[%clk 0:02:55]} 10. Qa4 {[%clk 0:03:02]}  h6 {[%clk 0:02:52]} 11. Bh4 {[%clk 0:03:00]}  Qe7 {[%clk 0:02:36]} 12. Nf3 {[%clk 0:02:59]}  Rd8 {[%clk 0:02:32]} 13. Qc2 {[%clk 0:01:42]}  c5 {[%clk 0:02:02]} 14. e4 {[%clk 0:01:19]}  Bxf1 {[%clk 0:02:03]} 15. Rxf1 {[%clk 0:01:16]}  g5 {[%clk 0:01:47]} 16. Bg3 {[%clk 0:01:15]}  Nc6 {[%clk 0:01:40]} 17. dxc5 {[%clk 0:01:10]}  Rxd1+ {[%clk 0:01:37]} 18. Kxd1 {[%clk 0:00:52]}  Rd8+ {[%clk 0:01:10]} 19. Kc1 {[%clk 0:00:51]}  Nd4 {[%clk 0:01:07]} 20. Nxd4 {[%clk 0:00:49]}  Rxd4 {[%clk 0:01:08]} 21. Bd6 {[%clk 0:00:48]}  Qd7 {[%clk 0:01:01]} 22. Be5 {[%clk 0:00:45]}  Nxe4 {[%clk 0:00:33]} 23. Bxd4 {[%clk 0:00:44]}  Qxd4 {[%clk 0:00:34]} 24. c6 {[%clk 0:00:38]}  Nc5 {[%clk 0:00:28]} 25. Rd1 {[%clk 0:00:36]}  Qf4+ {[%clk 0:00:22]} 26. Kb1 {[%clk 0:00:27]}  a5 {[%clk 0:00:19]} 27. b4 {[%clk 0:00:18]}  axb4 {[%clk 0:00:18]} 28. c7 {[%clk 0:00:18]}  Qxc7 {[%clk 0:00:17]} 29. axb4 {[%clk 0:00:18]}  Na6 {[%clk 0:00:14]} 30. Qxc7 {[%clk 0:00:17]}  Nxc7 {[%clk 0:00:15]} 31. Kc2 {[%clk 0:00:14]}  Nd5 {[%clk 0:00:15]} 32. Kb3 {[%clk 0:00:14]}  Kf8 {[%clk 0:00:15]} 33. Kc4 {[%clk 0:00:14]}  Ke7 {[%clk 0:00:14]} 34. Rxd5 {[%clk 0:00:14]}  exd5+ {[%clk 0:00:14]} 35. Kxd5 {[%clk 0:00:15]}  f5 {[%clk 0:00:12]} 36. Ke5 {[%clk 0:00:15]}  Kd7 {[%clk 0:00:10]} 37. Kxf5 {[%clk 0:00:14]}  Kc6 {[%clk 0:00:10]} 38. Kg6 {[%clk 0:00:15]}  Kb5 {[%clk 0:00:11]} 39. Kxh6 {[%clk 0:00:15]}  Kxb4 {[%clk 0:00:12]} 40. Kxg5 {[%clk 0:00:15]}  Kc4 {[%clk 0:00:08]} 41. h4 {[%clk 0:00:14]}  b5 {[%clk 0:00:08]} 42. h5 {[%clk 0:00:14]}  b4 {[%clk 0:00:09]} 43. h6 {[%clk 0:00:15]}  b3 {[%clk 0:00:10]} 44. h7 {[%clk 0:00:16]}  b2 {[%clk 0:00:11]} 45. h8=Q {[%clk 0:00:16]}  b1=Q {[%clk 0:00:12]} 46. Qc8+ {[%clk 0:00:16]}  Kd4 {[%clk 0:00:11]} 47. Qg4+ {[%clk 0:00:16]}  Ke5 {[%clk 0:00:10]} 48. Qf4+ {[%clk 0:00:16]}  Ke6 {[%clk 0:00:09]} 49. Qf6+ {[%clk 0:00:16]}  Kd7 {[%clk 0:00:03]} 50. Qf5+ {[%clk 0:00:16]}  Kd6 {[%clk 0:00:03]} 51. Qxb1 {[%clk 0:00:16]} 1-0


[Site "https://www.chess.com"]